Workbook

Sheet Objednávka
F1: Dodávateľ odborných služieb: | Q1: 0 | R1: =IF(OR(S1=1,G55<0)=TRUE,IF(G55<0,1+(-1*G55),IF(G55>0.3,1-G55,1)),1) -> 1 | S1: 0 | AA1: =IF(OR(G55<0,G55>0.3)=TRUE,1,0) -> 0
F2: Slovenské centrum obstarávania, o. z.
D3: OBJEDNÁVKA | F3: Sídlo: Podzámocká 67/6, Bojnice 972 01
D4: odborných služieb | F4: Prevádzka (poštová adresa):
D5: verejného obstarávania | F5: Hurbanovo námestie 46, 972 01 Bojnice
D6: pre komoditu: | F6: IČO: 42260515 | G6: DIČ: 2023510313
F7: IČ DPH: SK2023510313
F8: IBAN: SLSP, a.s. SK0509000000005028332376
B10: Elektrická energia ako burzová komodita
F12: Číslo objednávky SCO (nevypĺňajte) | G12: 3723/1
B13: Objednávateľ: | C13: Verejný obstarávateľ | F13: SCO ID
B14: Inštitúcia | C14: Obec Oravská Jasenica | F14: Č. objednávky objednávateľa | G14: 24 / 2023
F15: IČO | G15: 314714
B16: Ulica, číslo | C16: Oravská Jasenica č. 142 | F16: DIČ / IČ DPH | G16: 2020571729 | K16: 0 | L16: 200
F17: Banka, IBAN: SK19 5600 0000 0040 0366 0002 | K17: 3000 | L17: 250
B18: Sídlo | C18: Oravská Jasenica | K18: 6000 | L18: 300
B19: PSČ | C19: 029 64 | F19: Zodpovedná osoba: | K19: 9000 | L19: 350
B20: Štatutárny zástupca | C20: Ing Karol Graňák | F20: Meno: Ing. Karol Graňák | K20: 12000 | L20: 400 | Q20: =IF(E29=1,1,IF(E29=2,1.3,1.5)) -> 1.3
B21: Telefón | C21: 43/5525121 | F21: Telefon: 0435525121 | K21: 16000 | L21: 450
B22: Mobil | C22: 905255624 | F22: Mobil: 0905255624 | L22: =LOOKUP(E33,K16:K21,L16:L21) -> 450
B23: E-mail | C23: starosta@oravskajasenica.sk | F23: E-mail: starosta@oravskajasenica.sk | L23: =IF(D40="Člen",L22,L22*1.21) -> 544.5
B25: Týmto u Vás objednávame realizáciu verejného obstarávania na dodávateľa elektrickej energie pre našu inštitúciu
B29: Zadajte obdobie, na ktoré máte záujem zabezpečiť dodávatelia komodity (v rokoch) | E29: 2 | F29: =IF(E29=1,"rok",IF(E29=2,"roky","roky")) -> roky | G29: =IF(E33<70000,"Zákazka s nízkou hodnotou - nižšieho rozsahu",IF(E33<180000,"Zákazka s nízkou hodnotou - vyššieho rozsahu",IF(E33<215000,"Podlimitná zákazka","Nadlimitná zákazka"))) -> Zákazka s nízkou hodnotou - nižšieho rozsahu | K29: =IF(E33<70000,"Zákazka s nízkou hodnotou",IF(E33<221000,"Podlimitná zákazka","Nadlimitná zákazka")) -> Zákazka s nízkou hodnotou | AA29: Údaje v žltom rámčeku a ani modré bunky v stĺpci M klient nevidí
B30: ="Celkový predpokladaný finančný objem na dodávku s distribúciou pre rok " &IF(YEAR(H30)=1900,2017,YEAR(H30)) -> Celkový predpokladaný finančný objem na dodávku s distribúciou pre rok 2024 | E30: ='Výpočet PHZ'!C15 -> 17243.21 | F30: € bez DPH | G30: Počnúc dňom: | H30: 2024-01-01 | AC30: 1.21 | AD30: Zákazka s nízkou hodnotou do: | AH30: Podlimit: | AI30: Nadlimit | AJ30: Aktívna cena
B31: ="Celkový predpokladaný finančný objem na dodávku s distribúciou pre rok "&IF(YEAR(H30)=1900,2018,YEAR(H30)+1) -> Celkový predpokladaný finančný objem na dodávku s distribúciou pre rok 2025 | E31: ='Výpočet PHZ'!D15 -> 17513.86 | F31: € bez DPH | G31: Výpoved. lehota: | H31: 2 mesiace | K31: 1 | L31: Ing. Ľuboš Babarík +421 903 803 306 obchod@i-sco.sk | AB31: Názov | AC31: Číslo riadku | AD31: 10000 | AE31: 40000 | AF31: 70000 | AG31: 180000 | AH31: 215000
B32: ="Celkový predpokladaný finančný objem na dodávku s distribúciou pre rok "&IF(YEAR(H30)=1900,2019,YEAR(H30)+2) -> Celkový predpokladaný finančný objem na dodávku s distribúciou pre rok 2026 | F32: € bez DPH | G32: Údaje o výpovednej lehote dôkladne skontrolovať! | K32: 2 | L32: Ing.Zdenko Bičár +421 914 341 332 obchod@i-sco.sk | AB32: =LEFT($B$43,20) -> 1) Odborná analýza, | AC32: =ROW($B$43) -> 43 | AD32: 88 | AE32: 176 | AF32: 249 | AG32: 398 | AH32: 440 | AI32: 470 | AJ32: =IF($E$33<=$AD$31,AD32,IF($E$33<=$AE$31,AE32,IF($E$33<=$AF$31,AF32,IF($E$33<$AG$31,AG32,IF($E$33<$AH$31,AH32,AI32))))) -> 176
B33: Predpokladaný finančný objem na obstarávanú komoditu s distribúciou spolu | E33: ='Výpočet PHZ'!C8 -> 34757.07 | F33: € bez DPH | K33: 3 | L33: Ing. Vladimír Fufaľ +421 911 803 102 obchod@i-sco.sk | AB33: =LEFT($B$44,20) -> 2) Vypracovanie rámc | AC33: =ROW($B$44) -> 44 | AD33: 79 | AE33: 98 | AF33: 112 | AG33: 137 | AH33: 150 | AI33: 169 | AJ33: 98
L34: =VLOOKUP(I40,$K$31:$L$33,2,0) -> Ing. Vladimír Fufaľ +421 911 803 102 obchod@i-sco.sk | AB34: =LEFT($B$45,20) -> 3) Vypracovanie súťa | AC34: =ROW($B$45) -> 45 | AD34: 99 | AE34: 154 | AF34: 236 | AG34: 365 | AH34: 400 | AI34: 449 | AJ34: 154
AB35: =LEFT($B$46,20) -> 4) Počet odberných m | AC35: =ROW($B$46) -> 46 | AD35: 18 | AE35: 18 | AF35: 18 | AG35: 18 | AH35: 18 | AI35: 18 | AJ35: 18
B36: =IF(E29=1,"Celková spotreba za obstarávané obdobie",IF(E29=2,"Celková spotreba za obstarávané obdobia","Celková spotreba za obstarávané obdobia")) -> Celková spotreba za obstarávané obdobia | E36: =IF('Výpočet PHZ'!B8=0,"",'Výpočet PHZ'!B8) -> 110.4 | F36: MWh | AB36: =LEFT($B$47,20) -> 5) Počet ďalších prá | AC36: =ROW($B$47) -> 47 | AD36: 308 | AE36: 308 | AF36: 308 | AG36: 308 | AH36: 308 | AI36: 308 | AJ36: 308
AB37: =LEFT($B$48,20) -> 6) Sledovanie komodi | AC37: =ROW($B$48) -> 48 | AD37: 22 | AE37: 28 | AF37: 33 | AG37: 43 | AH37: 47 | AI37: 47 | AJ37: 28
B38: Upozornenie!!! Finančný objem obsahuje celkovú cenu elektrickej energie vrátane ceny za distribúciu elektriny vrátane prenosu elektriny a strát pri prenose elektriny, ostatných regulovaných položiek v zmysle rozhodnutí Úradu pre reguláciu sieťových odvetví, odvodu do Národného jadrového fondu a spotrebnej dane. | AB38: =LEFT($B$49,20) -> 7) Pevná sadzba za r | AC38: =ROW($B$49) -> 49 | AD38: 189 | AE38: 189 | AF38: 189 | AG38: 189 | AH38: 330 | AI38: 330 | AJ38: 189
AB39: =LEFT($B$50,20) -> 8) Komplexné riadeni | AC39: =ROW($B$50) -> 50 | AD39: 88 | AE39: 88 | AF39: 88 | AG39: 88 | AH39: 100 | AI39: 120 | AJ39: 88
B40: Člen SCO / Partner SCO: | D40: Partner | F40: Zodpovedný obchodný manažér SCO: | G40: =L34 -> Ing. Vladimír Fufaľ +421 911 803 102 obchod@i-sco.sk | I40: 3 | J40: 2) Vypracovanie súťažných podkladov (SP) pre verejné obstarávanie | AB40: =OR(G55>0.3,G55<0) -> FALSE | AC40: =OR(AND(AB40=TRUE,S1=1)=TRUE,AD40=TRUE) -> FALSE | AD40: =G55<0 -> FALSE
J41: 2) Metodiky na prieskum trhu
B42: Objednaná položka | F42: =IF(C51=0,"Jednotková cena","Jednotková cena bez DPH") -> Jednotková cena bez DPH | G42: =IF(C51=0,"Celková cena","Celková cena bez DPH") -> Celková cena bez DPH | H42: Celková cena s DPH
B43: 1) Odborná analýza, návrh metodiky pre danú komoditu a návrh riešenia verejného obstarávania | E43: áno | F43: =ROUND($R$1*($Q$20*AJ32),0) -> 229 | G43: =IF(E43="áno",F43,0) -> 229 | H43: =G43*1.2 -> 274.8 | J43: 7) Pevná sadzba za realizáciu e-aukcie
B44: =IF(G29="Zákazka s nízkou hodnotou",AA44,AA45) -> 2) Vypracovanie rámcovej dohody podľa Obchodného zákonníka, v zmysle Zákona č. 343/2015 Z. z. o verejnom obstarávaní a o zmene a doplnení niektorých zákonov | E44: áno | F44: 127 | G44: 127 | H44: 152.4 | J44: 7) Pevná sadzba za realizáciu prieskumu trhu formou e-aukcie | AA44: 2) Vypracovanie výzvy na predkladanie ponúk, stanovenie podmienok pre proces verejného obstarávania v zmysle zákona č. 343/2015 Z.z. a podmienok dodávateľskej zmluvy pre verejného obstarávateľa v zmysle Obchodného zákonníka SR
B45: 3) Vypracovanie súťažných podkladov (SP) pre verejné obstarávanie / príležitostné spoločné obstarávanie | E45: áno | F45: 200 | G45: 200 | H45: 240 | J45: 8) Komplexné riadenie procesu verejného obstarávania / príležitostného spoločného obstarávania | AA45: 2) Vypracovanie rámcovej dohody podľa Obchodného zákonníka, v zmysle Zákona č. 343/2015 Z. z. o verejnom obstarávaní a o zmene a doplnení niektorých zákonov
B46: 4) Počet odberných miest - zahrnutie do SP v € / 1 OM | E46: 13 | F46: 23 | G46: =E46*F46 -> 299 | H46: 358.8 | J46: 8) Komplexné riadenie riadenie procesu prieskumu trhu
B47: 5) Počet ďalších právnych subjektov v zriaďovateľskej právomoci (s výnimkou objednávateľa) | E47: 0 | F47: 400 | G47: 0 | H47: 0
B48: 6) Sledovanie komoditnej burzy PXE a písomné stanovenie burzového dňa pre určenie ceny elektrickej energie v optimálnom čase na zazmluvneného dodávateľa a informovanie objednávateľa | E48: áno | F48: 36 | G48: =IF(E48="áno",F48,0) -> 36 | H48: 43.2 | J48: Faktúra číslo 2 za položky 2 - 7 bude vystavená po zverejnení oznámenia vo vestníku VO
B49: =IF(E33>=1000,J43,J44) -> 7) Pevná sadzba za realizáciu e-aukcie | E49: áno | F49: =AJ38 -> 189 | G49: 189 | H49: 226.8 | J49: Faktúra číslo 2 bude vystavená za položky 2 - 9 po ukončení VO
B50: =IF(E33>=1000,J45,J46) -> 8) Komplexné riadenie procesu verejného obstarávania / príležitostného spoločného obstarávania | E50: áno | F50: =ROUND($R$1*($Q$20*AJ39),0) -> 114 | G50: 114 | H50: 136.8
B51: Výška DPH: | C51: 0.2 | E51: Celková cena objednávky: | G51: =SUM(G43:G50) -> 1194 | H51: 1432.8
B52: Objednávateľ berie na vedomie kritickú situáciu na energetických burzách aktuálny nedostatok energetických | E52: Cena objednávky prepočítaná na jeden rok: | G52: =G56/E29 -> 0 | H52: 0
B53: komodít a je si vedomý, že vysúťažené ceny môžu byť vyššie ako súčasné zazmluvnené ceny. | E53: Priemerná cena na 1 právny subjekt za rok: | G53: =G58 -> 0 | H53: 0
B55: Objednávateľ, ak sa nedohodne inak, zodpovedá za včasné a správne vypovedanie zmluvy so súčastným dodávateľom. | M55: =G55 -> 0
B60: Dodávateľ je platcom DPH. Splatnosť faktúr je 7 dní odo dňa ich doručenia.
G61: Cena bez DPH | H61: Cena s DPH
B62: ="Faktúra číslo 1 za položku "&IF(G29="Zákazka s nízkou hodnotou","1 a 2",1)&" bude vystavená na objednávateľa ihneď po spracovaní dát a potvrdení akceptácie objednávky dodávateľom" -> Faktúra číslo 1 za položku 1 bude vystavená na objednávateľa ihneď po spracovaní dát a potvrdení akceptácie objednávky dodávateľom | G62: =IF($AC$40=TRUE,IF($K$29="Zákazka s nízkou hodnotou",SUM(G43:G44),G43),IF(K29="Zákazka s nízkou hodnotou",SUM(G43:G44)*(1-$G$55),G43*(1-$G$55))) -> 356 | H62: =G62*1.2 -> 427.2
B63: ="Faktúra číslo 2 za položky "&IF(G29="Zákazka s nízkou hodnotou","3 - 8","2 - 6")&" bude vystavená po "&IF(G29="Zákazka s nízkou hodnotou","po zaslaní výzvy na predkladanie ponúk pre zákazku s nízkou hodnotou a jej vyhodnotením.","zverejnení oznámenia vo vestníku VO.") -> Faktúra číslo 2 za položky 2 - 6 bude vystavená po zverejnení oznámenia vo vestníku VO. | G63: =IF($AC$40=TRUE,IF($K$29="Zákazka s nízkou hodnotou",SUM(G45:G50),SUM(G44:G48)),IF(K29="Zákazka s nízkou hodnotou",SUM(G45:G50)*(1-$G$55),SUM(G44:G48)*(1-$G$55))) -> 838 | H63: 1005.6
B64: Faktúra číslo 3 za položky 7 - 8 bude vystavená po ukončení VO alebo po vyhodnotení výsledkov zákazky s nízkou hodnotou (po úhrade faktúry bude objednávateľovi odoslaná kompletná dokumentácia verejného obstarávania) | G64: =IF($AC$40=TRUE,IF($K$29="Zákazka s nízkou hodnotou",0,SUM(G49:G50)),IF(K29="Zákazka s nízkou hodnotou",0,SUM(G49:G50)*(1-$G$55))) -> 0 | H64: =(G64*$C$51)+G64 -> 0
B66: Súčasťou tejto objednávky je tabuľka odberných miest a predpokladaných spotrieb na na obstatávané obdobie.
B67: Dolupodpísaný objednávateľ (štatutárny orgán objednávateľa) čestne vyhlasujem, že:
B68: 1/ Všetky informácie obsiahnuté v objednávke a v príkaznej zmluve sú úplné, pravdivé a správne. | E68: Pečiatka a podpis za verejného obstarávateľa:
B69: 2/ Som si vedomý skutočnosti, že nesiem úplnú zodpovednosť za následky uvedenia nesprávnych údajov.
B70: 3/ Svojím podpisom súhlasím so všeobecnými obchodnými podmienkami uvedenými na zadnej strane tejto objednávky.
B71: 4/ Akceptujem posielanie faktúr a potvrdenie objednávky elektronickou formou.
B73: Dňa: | C73: 2023-03-27 | E73: Pečiatka a podpis za dodávateľa odborných služieb (SCO):
B75: Pred odoslaním podpísanej objednávky poštou, Vás prosíme o jej zoscanovanie a zaslanie na centrálu SCO e-mailom na obchod@i-sco.sk
B77: Ďakujeme za spoluprácu.
B80: Všeobecné obchodné podmienky
B82: Práva a povinnosti Dodávateľa odborných služieb
B84: Práva a povinnosti Slovenského centra obstarávania – ďalej len “Dodávateľ odborných služieb” príležitostného spoločného obstarávania.
B86: 1. Dodávateľ odborných služieb sa zaväzuje príležitostné spoločné obstarávania vykonávať v zmysle aktuálnej platnej legislatívy Európskej únie a Slovenskej republiky, najmä však podľa zákona č. 343/2015 Z.Z o verejnom obstarávaní a o zmene a doplnení niektorých zákonov v znení neskorších predpisov.
B87: 2. Dodávateľ odborných služieb sa zaväzuje svojimi administrátorskými zásahmi do výberových konaní v príležitostných spoločných obstarávaniach nezvýhodňovať ktoréhokoľvek dodávateľa pred ostatnými dodávateľmi.
B88: 3. Dodávateľ odborných služieb je povinný bezodkladne informovať všetkých účastníkov o udalostiach, ktoré by mohli obmedziť riadny priebeh príležitostného spoločného obstarávania a následne podniknúť adekvátne kroky vedúce k ich náprave.
B89: 4. Dodávateľ odborných služieb sa zaväzuje poskytnúť službu na základe objednávky na príležitostné spoločné obstarávanie v dohodnutom rozsahu a kvalite, nezodpovedá však za vznik udalostí, ktoré akýmkoľvek spôsobom znemožnia účastníkovi riadne zapojenie sa do výberového konania a boli zavinené treťou osobou. Dodávateľ odborných služieb tiež nezodpovedá za kvalitu a dostupnosť internetových služieb účastníka.
B90: 5. V prípade realizácie verejného obstarávania podľa § 117 Zákona 343/2015 Z. z. a jeho novelizácií sa proces verejného obstarávania bude realizovať bez rámcovej dohody.
B91: 6. Dodávateľ odborných služieb sa zaväzuje, že vhodnými opatreniami zabezpečí dôvernosť všetkých údajov získaných od účastníka a bude ich používať len na účely spojené s príležitostným spoločným obstarávaním, ku ktorému zadávateľ svojou objednávkou pristupuje, resp. pre svoje interné potreby.
B92: 7. Dodávateľ odborných služieb zodpovedá za náhradu škôd spôsobených porušením zmluvných, resp. mimozmluvných podmienok len v prípade, že k nemu došlo úmyselne z jeho strany, pokiaľ nie je v týchto podmienkach stanovené inak.
B94: Práva a povinnosti objednávateľa
B96: 1. Objednávateľ bude poskytovať súčinnosť potrebnú k uskutočneniu predmetu plnenia Dodávateľom odborných služieb, ktorou je včasné poskytnutie úplných informácií (najneskôr 14 dní pred zverejnením súťažných podkladov príležitostného spoločného obstarávania) podľa pokynov poskytovateľa týkajúcich sa špecifikácií, cien, objemu, kvality predmetu nákupu alebo predávaného majetku a iných informácií potrebných k príprave a uskutočneniu komplexného procesu príležitostného spoločného obstarávania. Objednávateľ sa zaväzuje dodržať všetky doporučené termíny, metodické postupy a pokyny potrebné pre prípravu a realizáciu príležitostného spoločného obstarávania, ktoré odporučí Dodávateľovi odborných služieb.
B97: 2. Objednávateľ zodpovedá za správnosť ním poskytnutých údajov týkajúcich sa predmetu príležitostného spoločného obstarávania a obchodných podmienok súvisiacich s výberovým konaním. Neoddeliteľnou súčasťou tejto objednávky je zmluva o Príležitostnom spoločnom obstarávaní podľa § 16 zákona č. 343/2015 Zb.
B98: 3. Objednávateľ plne zodpovedá za prípadnú škodu, ktorá vznikne Dodávateľovi odborných služiebovi, resp. dodávateľovi v súvislosti s ním umožneným prístupom tretej osoby k informáciám týkajúcich sa príležitostného spoločného obstarávania.
B99: 4. Objednávateľ má právo vykonať zmenu v špecifikácii predmetu príležitostného spoločného obstarávania v jeho priebehu len v prípade, že táto zmena neovplyvní riadny priebeh výberového konania a je plne v súlade so zákonom 343/2015 Z.z.
B100: 5. Výsledky príležitostného spoločného obstarávania nie sú pre objednávateľa záväzné v prípade, ak je ponuka úspešného uchádzača v rozpore s podmienkami uvedenými v súťažných podkladoch, resp. vo výzve na účasť.
B101: 6. Objednávateľ je povinný uhradiť dohodnutú cenu za poskytovanú službu na základe ceny, ktorá vzišla pri vyplnení objednávky.
B102: 7. V prípade, že konaním objednávateľa vznikne Dodávateľovi odborných služiebovi, resp. dodávateľovi škoda, je tento oprávnený nárokovať si u objednávateľa jej náhradu v plnej výške.
B103: 8. Objednávateľ dáva Dodávateľovi odborných služiebovi súhlas k použitiu jeho e-mailových adries uložených v databáze Slovenského centra obstarávania k zasielaniu e-mailov súvisiacich s činnosťou združenia.
B104: 9. Objednávateľ sa zaväzuje neposkytovať tretím stranám know–how, ktoré Dodávateľ odborných služieb používa. V prípade preukázania porušenia tohto bodu zmluvy je objednávateľ povinný uhradiť Dodávateľovi odborných služiebovi vzniknutú škodu v plnej výške a k tomu sankciu vo výške 7.000 €
B106: Záverečné ustanovenia
B108: 1. Právne vzťahy medzi Dodávateľom odborných služieb a účastníkmi príležitostných spoločných obstarávaní sa riadia právnym poriadkom Slovenskej republiky.
B109: 2. Akékoľvek zmeny a doplnky týchto všeobecne platných obchodných podmienok možno urobiť len písomnou formou, inak sú neplatné.
B110: 3. Zmluvné strany sa zaväzujú, že všetky prípadné spory, ktoré vzniknú v súvislosti s touto zmluvou, budú riešiť vzájomnou dohodou s cieľom - zachovať dobré obchodné vzťahy.
B111: 4. Zmluvné strany svojimi podpismi potvrdzujú, že sú s jej obsahom oboznámené a že túto objednávku uzatvárajú dobrovoľne na základe svojej slobodnej vôle, nie v tiesni, ani za nápadne nevyhovujúcich podmienok.
B112: 5. Tieto Všeobecné obchodné podmienky pre príležitostné spoločné obstarávanie sú platné a účinné od 18.4.2016 v plnom rozsahu pre všetkých účastníkov príležitostných spoločných obstarávaní realizovaných Slovenským centrom obstarávania. V prípade, že nastane zmena v týchto podmienkach v priebehu niektorého príležitostného spoločného obstarávania vyhláseného prostredníctvom Slovenského centra obstarávania, tá sa na prebiehajúce výberové konanie nevzťahuje.

Sheet Verejné osvetlenie
A1: vf
B4: Podklady o spotrebách elektrickej energie všetkých odberných miest
B5: podklad pre výberové konanie na obstarávanie elektrickej energie
B7: Odberateľ: | C7: Obec Oravská Jasenica
B8: Adresa: | C8: Oravská Jasenica 142
B9: IČO: | C9: 314714
B10: Podklady vyplnil: | C10: Ing. Karol Graňák
B11: Telefonický kontakt: | C11: 905355624
B12: Mailový kontakt: | C12: starosta@oravskajasenica.sk
B13: Počet riadkov
A16: P.č. | B16: Adresa miesta spotreby | C16: Názov odberného miesta | D16: EIC kód | E16: Meno subjektu ( vypisujte, iba ak obstarávate pre viac subjektov) | F16: Súčastný dodávateľ a platné zmluvy. | J16: Spotreba za rok 2023 v MWh (Informatívne údaje) | M16: Predpokladaná spotreba za rok 2024 v MWh záväzné údaje do súťažných podkladov | P16: Predpokladaná spotreba za rok 2025 v MWh záväzné údaje do súťažných podkladov | S16: ="Predpokladaná spotreba za rok "&IF(YEAR(Objednávka!H30)=1900,2017,YEAR(Objednávka!H30)) &" v MWh záväzné údaje do súťažných podkladov" -> Predpokladaná spotreba za rok 2024 v MWh záväzné údaje do súťažných podkladov | V16: Predpokladaná spotreba za rok 2024 v MWh záväzné údaje do súťažných podkladov | Y16: Napätie | Z16: Nízke napätie | AB16: Typ merania A-priebehové meranie s diaľkovým odpočtom B-priebehové meranie bez ďialkového odpočtu C-bez priebehového merania
F18: Meno dodávateľa | G18: Trvanie súčasnej zmluvy do | H18: Výpovedná lehota | I18: Dátum účinnosti novej dodávky | J18: JT | K18: VT | L18: NT | M18: JT | N18: VT | O18: NT | P18: JT | Q18: VT | R18: NT | S18: JT | T18: VT | U18: NT | V18: JT | W18: VT | X18: NT | Y18: NN | Z18: Hodnota ističa | AA18: Distribučná tarifa
A19: P.č. | B19: Adresa miesta spotreby | C19: Názov odberného miesta | D19: EIC kód | E19: Meno subjektu | F19: Meno dodávateľa | G19: Trvanie súčasnej zmluvy do | H19: Výpovedná lehota | I19: Dátum účinnosti novej dodávky | J19: JT 22 | K19: VT 22 | L19: NT 22 | M19: JT 23 | N19: VT 23 | O19: NT 23 | P19: JT 24 | Q19: VT 24 | R19: NT 24 | S19: Stĺpec25 | T19: Stĺpec26 | U19: Stĺpec27 | V19: Stĺpec28 | W19: Stĺpec29 | X19: Stĺpec30 | Y19: Napätie | Z19: Hodnota ističa | AA19: Distribučná tarifa | AB19: Typ merania
A20: 1 | B20: Oravská Jasenica 302/AT | C20: ver. osvetlenie č.302 | D20: 24ZSS3207935000K | F20: SSE a.s. | G20: 12/31/2023 | H20: 2 mesiace | I20: 2024-01-01 | K20: 4 | N20: 4.2 | Q20: 4.2 | Z20: 3x40 | AA20: C10 | AB20: A
A21: 2 | B21: Oravská Jasenica 83AI | C21: ver. osvetlenie č.83 | D21: 24ZSS3207925000Q | F21: SSE a.s. | G21: 12/31/2023 | H21: 2 mesiace | I21: 2024-01-01 | K21: 14 | N21: 14.2 | Q21: 14.2 | Z21: 3x32 | AA21: C10 | AB21: A
A22: 3 | B22: Oravská Jasenica 3616 | C22: ver. osvetlenie č.3616 | D22: 24ZSS45306750005 | F22: SSE a.s. | G22: 12/31/2023 | H22: 2 mesiace | I22: 2024-01-01 | K22: 3 | N22: 3.1 | Q22: 3.1 | Z22: 3x25 | AA22: C10 | AB22: C
A23: 4 | B23: Oravská Jasenica 459 | C23: ver. osvetlenie č.459 | D23: 24ZSS3302146000L | F23: SSE a.s. | G23: 12/31/2023 | H23: 2 mesiace | I23: 2024-01-01 | K23: 5.5 | N23: 5.8 | Q23: 5.8 | T23: 52 | W23: 52 | Z23: 3x25 | AA23: C10 | AB23: C
A24: 5 | U24: 13 | X24: 13
A25: 6
A26: 7
A27: =A26+1 -> 8
A28: 9
A29: 10
A30: Pre pridanie ďalších riadkov, do bunky "C13" vpíšte počet riadkou a kliknite na tlačidlo" Pridaj riadky" | J30: =SUM('Verejné osvetlenie'!$J$20:$J$29) -> 0 | K30: =SUM('Verejné osvetlenie'!$K$20:$K$29) -> 26.5 | L30: =SUM('Verejné osvetlenie'!$L$20:$L$29) -> 0 | M30: =SUM('Verejné osvetlenie'!$M$20:$M$29) -> 0 | N30: =SUM('Verejné osvetlenie'!$N$20:$N$29) -> 27.3 | O30: =SUM('Verejné osvetlenie'!$O$20:$O$29) -> 0 | P30: =SUM('Verejné osvetlenie'!$P$20:$P$29) -> 0 | Q30: =SUM('Verejné osvetlenie'!$Q$20:$Q$29) -> 27.3 | R30: =SUM('Verejné osvetlenie'!$R$20:$R$29) -> 0 | S30: =SUM('Verejné osvetlenie'!$Y$20:$Y$29) -> 0 | T30: =SUM('Verejné osvetlenie'!$Z$20:$Z$29) -> 0 | U30: =SUM('Verejné osvetlenie'!$AA$20:$AA$29) -> 0 | V30: =SUM('Verejné osvetlenie'!$AB$20:$AB$29) -> 0 | W30: =SUM(#REF!) -> 
J31: spolu za všetky tarify | L31: =J30+K30+L30 -> 26.5 | M31: spolu za všetky tarify | O31: =M30+N30+O30 -> 27.3 | P31: spolu za všetky tarify | R31: =P30+Q30+R30 -> 27.3 | S31: Spolu za všetky tarify | U31: =SUM(S30:U30) -> 0 | V31: Spolu za všetky tarify | X31: =SUM(V30:X30) -> 

Sheet Odberné miesta
B4: Podklady o spotrebách elektrickej energie všetkých odberných miest
B5: podklad pre výberové konanie na obstarávanie elektrickej energie
I6: JT | J6: Jednotarif | L6: NN | M6: nízke napätie
B7: Odberateľ: | C7: =IF('Verejné osvetlenie'!C7:G7=0,"Hlavičku vyplnte na hárku verejné osvetlenie.",'Verejné osvetlenie'!C7:G7) -> Obec Oravská Jasenica | I7: VT | J7: vysoký tarif | L7: VN | M7: vysoké napätie
B8: Adresa: | C8: =IF('Verejné osvetlenie'!C8:G8=0,"",'Verejné osvetlenie'!C8:G8) -> Oravská Jasenica 142 | I8: NT | J8: nízky tarif | L8: EIC kód | M8: viď. zmluva
B9: IČO: | C9: =IF('Verejné osvetlenie'!C9:G9=0,"",'Verejné osvetlenie'!C9:G9) -> 314714 | I9: AKU NT | J9: elektrické vykurovanie - nízky tarif
B10: Podklady vyplnil: | C10: =IF('Verejné osvetlenie'!C10:G10=0,"",'Verejné osvetlenie'!C10:G10) -> Ing. Karol Graňák | I10: AKU VT | J10: elektrické vykurovanie - vysoký tarif
B11: Telefonický kontakt: | C11: =IF('Verejné osvetlenie'!C11:G11=0,"",'Verejné osvetlenie'!C11:G11) -> 905355624 | I11: WT | J11: víkendový tarif (víkendy a sviatky)
B12: Mailový kontakt: | C12: =IF('Verejné osvetlenie'!C12:G12=0,"",'Verejné osvetlenie'!C12:G12) -> starosta@oravskajasenica.sk
B13: Počet riadkov
A16: P. č. | B16: Adresa miesta spotreby | C16: Názov odberného miesta | D16: EIC kód | E16: Meno subjektu ( vypisujte, iba ak obstarávate pre viac subjektov) | F16: Súčastný dodávateľ a platné zmluvy. | J16: Spotreba za rok 2023 v MWh Informatívne údaje | P16: Spotreba spolu | Q16: Predpokladaná spotreba za rok 2024 v MWh záväzné údaje do súťažných podkladov | W16: Spotreba spolu | X16: Predpokladaná spotreba za rok 2025 v MWh záväzné údaje do súťažných podkladov | AR16: Spotreba spolu | AS16: Napätie | AT16: Vysoké napätie | AV16: Nízke napätie | AX16: Typ merania A-priebehové meranie s diaľkovým odpočtom B-priebehové meranie bez ďialkového odpočtu C-bez priebehového merania
F18: Meno dodávateľa | G18: Trvanie súčasnej zmluvy do | H18: Výpovedná lehota | I18: Dátum účinnosti novej dodávky | J18: JT | K18: VT | L18: NT | M18: WT | N18: AKU/VT | O18: AKU/NT | P18: MWh | Q18: JT | R18: VT | S18: NT | T18: WT | U18: AKU/VT | V18: AKU/NT | W18: MWh | X18: JT | Y18: VT | Z18: NT | AA18: WT | AB18: AKU/VT | AC18: AKU/NT | AD18: MWh | AE18: JT | AF18: VT | AG18: NT | AH18: WT | AI18: AKU/VT | AJ18: AKU/NT | AK18: MWh | AL18: JT | AM18: VT | AN18: NT | AO18: WT | AP18: AKU/VT | AQ18: AKU/NT | AR18: MWh | AS18: NN / VN | AT18: Rezervovaná kapacita | AU18: Maximálna rezervovaná kapacita | AV18: Hodnota ističa | AW18: Distribučná tarifa
A19: P.č. | B19: Adresa miesta spotreby | C19: Názov odberného miesta | D19: EIC kód | E19: Meno subjektu | F19: Meno dodávateľa | G19: Trvanie súčasnej zmluvy do | H19: Výpovedná lehota | I19: Dátum účinnosti novej dodávky | J19: JT 22 | K19: VT 22 | L19: NT 22 | M19: WT 22 | N19: AKU/VT 22 | O19: AKU/NT 22 | P19: Spotreba spolu 22 | Q19: JT 23 | R19: VT 23 | S19: NT 23 | T19: WT 23 | U19: AKU/VT 23 | V19: AKU/NT 23 | W19: Spotreba spolu 23 | X19: JT 24 | Y19: VT 24 | Z19: NT 234 | AA19: WT 235 | AB19: AKU/VT 236 | AC19: AKU/NT 237 | AD19: Spotreba spolu 238 | AE19: JT 239 | AF19: VT 2310 | AG19: NT 2311 | AH19: WT 2312 | AI19: AKU/VT 2313 | AJ19: AKU/NT 2314 | AK19: Spotreba spolu 2315 | AL19: JT 2316 | AM19: VT 2317 | AN19: NT 24 | AO19: WT 24 | AP19: AKU/VT 24 | AQ19: AKU/NT 24 | AR19: Spotreba spolu 24 | AS19: NN/VN | AT19: Rezervovaná kapacita | AU19: Maximálna rezervovaná kapacita | AV19: Hodnota ističa | AW19: Distribučná tarifa | AX19: Typ merania
A20: 1 | B20: Oravská Jasenica 126, 029 64 Oravská Jasenica | C20: Obecný úrad | D20: 24ZSS3207924000V | F20: SSE a.s. | G20: 2023-12-31 | H20: 2 mesiace | I20: 2024-01-01 | K20: 7 | P20: =SUM(J20:O20) -> 7 | R20: 7 | W20: =SUM('Odberné miesta'!$Q20:$V20) -> 7 | Y20: 7 | AR20: =SUM(X20:AQ20) -> 7 | AS20: NN | AV20: 3x25 | AW20: C1 | AX20: A
A21: =A20+1 -> 2 | B21: Oravská Jasenica 142, 029 64 Oravská Jasenica - Oravská Jasenica | C21: Kultúrny dom | D21: 24ZSS32079400002 | F21: SSE a.s. | G21: 2023-12-31 | H21: 2 mesiace | I21: 2024-01-01 | K21: 4 | L21: 1.1 | P21: 5.1 | R21: 4 | S21: 1.3 | W21: =SUM('Odberné miesta'!$Q21:$V21) -> 5.3 | Y21: 4 | AN21: 1.3 | AR21: 5.3 | AS21: NN | AV21: 3x100 | AW21: C5 | AX21: A
A22: 3 | B22: Oravská Jasenica , 029 64 Oravská Jasenica | C22: Zberný dvor | D22: 24ZSS45330970001 | F22: SSE a.s. | G22: 2023-12-31 | H22: 2 mesiace | I22: 2024-01-01 | K22: 3 | P22: 3 | R22: 3 | W22: =SUM('Odberné miesta'!$Q22:$V22) -> 3 | Y22: 3 | AR22: 3 | AS22: NN | AV22: 3x25 | AW22: C1 | AX22: C
A23: 4 | B23: Oravská Jasenica 268, 029 64 Oravská Jasenica | C23: Pamätná izba | D23: 24ZSS3207919000C | F23: SSE a.s. | G23: 2023-12-31 | H23: 2 mesiace | I23: 2024-01-01 | K23: 0.1 | P23: 0.1 | R23: 0.3 | W23: =SUM('Odberné miesta'!$Q23:$V23) -> 0.3 | Y23: 0.3 | AR23: 0.3 | AS23: NN | AV23: 1x16 | AW23: C1 | AX23: C
A24: 5 | B24: Oravská Jasenica 450, 029 64 Oravská Jasenica | C24: Bytovka | D24: 24ZSS3304382000O | F24: SSE a.s. | G24: 2023-12-31 | H24: 2 mesiace | I24: 2024-01-01 | K24: 0.3 | P24: 0.3 | R24: 0.3 | W24: =SUM('Odberné miesta'!$Q24:$V24) -> 0.3 | Y24: 0.3 | AR24: 0.3 | AS24: NN | AV24: 3x16 | AW24: C1 | AX24: C
A25: 6 | B25: Oravská Jasenica 238, 029 64 Oravská Jasenica | C25: Dom smútku | D25: 24ZSS3207927000G | F25: SSE a.s. | G25: 2023-12-31 | H25: 2 mesiace | I25: 2024-01-01 | K25: 1.7 | L25: 0.8 | P25: 2.5 | R25: 1.7 | S25: 0.8 | W25: =SUM('Odberné miesta'!$Q25:$V25) -> 2.5 | Y25: 1.7 | AN25: 0.8 | AR25: 2.5 | AS25: NN | AV25: 3x16 | AW25: C5 | AX25: C
A26: =A25+1 -> 7 | B26: Oravská Jasenica 347, 029 64 Oravská Jasenica | C26: Sklady TJ | D26: 24ZSS32079300008 | F26: SSE a.s. | G26: 2023-12-31 | H26: 2 mesiace | I26: 2024-01-01 | K26: 5.5 | P26: 5.5 | R26: 5.5 | W26: =SUM('Odberné miesta'!$Q26:$V26) -> 5.5 | Y26: 5.5 | AR26: 5.5 | AS26: NN | AV26: 3x25 | AW26: C2 | AX26: A
A27: 8 | B27: Oravská Jasenica 283, 029 64 Oravská Jasenica | C27: Požiarná zbrojnica | D27: 24ZSS3207950000X | F27: SSE a.s. | G27: 2023-12-31 | H27: 2 mesiace | I27: 2024-01-01 | K27: 2 | P27: 2 | R27: 2 | W27: =SUM('Odberné miesta'!$Q27:$V27) -> 2 | Y27: 2 | AR27: 2 | AS27: NN | AV27: 3x25 | AW27: C2 | AX27: C
A28: 9 | B28: Oravská Jasenica 143, 029 64 Oravská Jasenica | C28: Telocvičňa | D28: 24ZSS46064620009 | F28: SSE a.s. | G28: 2023-12-31 | H28: 2 mesiace | I28: 2024-01-01 | K28: 2 | P28: 2 | R28: 2 | W28: =SUM('Odberné miesta'!$Q28:$V28) -> 2 | Y28: 2 | AK28: =SUM(AE28:AJ28) -> 0 | AR28: 2 | AS28: NN | AV28: 3x25 | AW28: C3 | AX28: A
A29: 10 | P29: 0 | W29: =SUM('Odberné miesta'!$Q29:$V29) -> 0 | AK29: 0 | AR29: 0
A30: Pre pridanie ďalších riadkov, do bunky "C13" vpíšte počet riadkou a kliknite na tlačidlo" Pridaj riadky" | J30: =SUM('Odberné miesta'!$J$20:$J$29) -> 0 | K30: =SUM('Odberné miesta'!$K$20:$K$29) -> 25.6 | L30: =SUM('Odberné miesta'!$L$20:$L$29) -> 1.9 | M30: =SUM('Odberné miesta'!$M$20:$M$29) -> 0 | N30: =SUM('Odberné miesta'!$N$20:$N$29) -> 0 | O30: =SUM('Odberné miesta'!$O$20:$O$29) -> 0 | P30: =SUM('Odberné miesta'!$P$20:$P$29) -> 27.5 | Q30: =SUM('Odberné miesta'!$Q$20:$Q$29) -> 0 | R30: =SUM('Odberné miesta'!$R$20:$R$29) -> 25.8 | S30: =SUM('Odberné miesta'!$S$20:$S$29) -> 2.1 | T30: =SUM('Odberné miesta'!$T$20:$T$29) -> 0 | U30: =SUM('Odberné miesta'!$U$20:$U$29) -> 0 | V30: =SUM('Odberné miesta'!$V$20:$V$29) -> 0 | W30: =SUM('Odberné miesta'!$W$20:$W$29) -> 27.9 | X30: =SUM('Odberné miesta'!$X$20:$X$29) -> 0 | Y30: =SUM('Odberné miesta'!$Y$20:$Y$29) -> 25.8 | Z30: =SUM('Odberné miesta'!$Z$20:$Z$29) -> 0 | AA30: =SUM('Odberné miesta'!$AA$20:$AA$29) -> 0 | AB30: =SUM('Odberné miesta'!$AB$20:$AB$29) -> 0 | AC30: =SUM('Odberné miesta'!$AC$20:$AC$29) -> 0 | AD30: =SUM('Odberné miesta'!$AD$20:$AD$29) -> 0 | AE30: =SUM('Odberné miesta'!$AE$20:$AE$29) -> 0 | AF30: =SUM('Odberné miesta'!$AF$20:$AF$29) -> 0 | AG30: =SUM('Odberné miesta'!$AG$20:$AG$29) -> 0 | AH30: =SUM('Odberné miesta'!$AH$20:$AH$29) -> 0 | AI30: =SUM('Odberné miesta'!$AI$20:$AI$29) -> 0 | AJ30: =SUM('Odberné miesta'!$AJ$20:$AJ$29) -> 0 | AK30: =SUM('Odberné miesta'!$AK$20:$AK$29) -> 0 | AL30: =SUM('Odberné miesta'!$AL$20:$AL$29) -> 0 | AM30: =SUM('Odberné miesta'!$AM$20:$AM$29) -> 0 | AN30: =SUM('Odberné miesta'!$AN$20:$AN$29) -> 2.1 | AO30: =SUM('Odberné miesta'!$AO$20:$AO$29) -> 0 | AP30: =SUM('Odberné miesta'!$AP$20:$AP$29) -> 0 | AQ30: =SUM('Odberné miesta'!$AQ$20:$AQ$29) -> 0 | AR30: =SUM('Odberné miesta'!$AR$20:$AR$29) -> 27.9

Sheet Nemeraná spotreba
B4: Podklady o spotrebách elektrickej energie všetkých odberných miest
B5: podklad pre výberové konanie na obstarávanie elektrickej energie
B7: Odberateľ: | C7: =IF('Verejné osvetlenie'!C7:G7=0,"Hlavičku vyplnte na hárku verejné osvetlenie.",'Verejné osvetlenie'!C7:G7) -> Obec Oravská Jasenica
B8: Adresa: | C8: =IF('Verejné osvetlenie'!C8:G8=0,"",'Verejné osvetlenie'!C8:G8) -> Oravská Jasenica 142
B9: IČO: | C9: =IF('Verejné osvetlenie'!C9:G9=0,"",'Verejné osvetlenie'!C9:G9) -> 314714
B10: Podklady vyplnil: | C10: =IF('Verejné osvetlenie'!C10:G10=0,"",'Verejné osvetlenie'!C10:G10) -> Ing. Karol Graňák
B11: Telefonický kontakt: | C11: =IF('Verejné osvetlenie'!C11:G11=0,"",'Verejné osvetlenie'!C11:G11) -> 905355624
B12: Mailový kontakt: | C12: =IF('Verejné osvetlenie'!C12:G12=0,"",'Verejné osvetlenie'!C12:G12) -> starosta@oravskajasenica.sk
B13: Počet riadkov
A16: P. č. | B16: Adresa miesta spotreby | C16: Názov miesta spotreby | D16: EIC kód | E16: Meno subjektu ( vypisujte, iba ak obstarávate pre viac subjektov) | F16: Súčastný dodávateľ a platné zmluvy. | J16: Príkon spotrebiča (W) (ak je viac sptrebičov, tak uveďte súčet príkonov) | K16: Poznámka
F17: Meno dodávateľa | G17: Trvanie súčasnej zmluvy do | H17: Výpovedná lehota | I17: Dátum účinnosti novej dodávky
A18: P.č. | B18: Adresa miesta spotreby | C18: Názov miesta spotreby | D18: EIC kód | E18: Meno subjektu | F18: Meno dodávateľa | G18: trvanie zmluvy | H18: výpovedná lehota | I18: Dátum účinosti | J18: Príkon | K18: Poznámka
A19: 1
A20: 2
A21: 3
A22: 4
A23: 5
A24: 6
A25: 7
A26: 8
A27: 9
A28: 10
A29: Pre pridanie ďalších riadkov, do bunky "C13" vpíšte počet riadkou a kliknite na tlačidlo" Pridaj riadky"

Sheet Zoznam subjektov
A2: Zoznam ďalších právnych subjektov
A4: Počet subjektov
A6: Subjekt č. | B6: 1
A7: Meno subjektu | D7: Prosíme o správne a kompletné vyplnenie údajov. Tieto dáta sú potrebné pri zadávaní zákazky do systému UVO a budú poskytnuté víťazovi obstarávania na urýchlenie prípravy zmlúv.
A8: Ulica, číslo
A9: Sídlo
A10: PSČ
A11: IČO
A12: Štatutárny zástupca
A13: Telefón
A14: E-mail
A15: WEB
A16: .
A18: Pre pridanie ďalších subjektov, do bunky "B4" vpíšte počet subjektov a kliknite na tlačidlo" Pridaj subjekty"
A49: .
A61: .

Sheet Výpočet PHZ (hidden)
C2: Výpočet predbežnej hodnoty zákazky (PHZ)
B4: Zákazka: | C4: ="Výber dodávateľa elektrickej energie – "&CONCATENATE(Objednávka!C14," ",Objednávka!G12) -> Výber dodávateľa elektrickej energie – Obec Oravská Jasenica 3723/1
B5: Verejný obstarávateľ: | C5: =IF(Objednávka!C14=0,"",Objednávka!C14) -> Obec Oravská Jasenica
B7: Celkový objem v MWh | C7: PHZ bez DPH
B8: =C11+D11 -> 110.4 | C8: =C15+D15 -> 34757.07
C10: =IF(YEAR(Objednávka!H30)=1900,2024,YEAR(Objednávka!H30)) -> 2024 | D10: =IF(YEAR(Objednávka!H30)=1900,"2023",YEAR(Objednávka!H30))+1 -> 2025
B11: Objem v MWh | C11: ='Verejné osvetlenie'!O31+'Odberné miesta'!W30 -> 55.2 | D11: ='Verejné osvetlenie'!R31+'Odberné miesta'!AR30 -> 55.2
B12: Cena na burze EEX-PXE Slovakian Power Futures Zo dňa 30.1.2023 | C12: 172.377 | D12: 177.28
B13: Poplatky za distribúciu vrátane spotrebnej dane (odhad) | C13: 100 | D13: 100
B14: Prirážka dodávateľa max. (odhad) | C14: 40 | D14: 40
B15: PHZ bez DPH | C15: =ROUND(SUM(C11*(C12+C13+C14)),2) -> 17243.21 | D15: 17513.86
B17: Dňa : 10.3.2023
B18: Vypracoval: Ing. Fufaľ Vladimír
